bitfinex/quotes_ETHUSD_20250914
["timestamp","ask_amount","ask_price","bid_price","bid_amount"]
[1757823389500,21.31832081,4653.4,4653.3,0.2999]
[1757823389669,21.31858439,4653.4,4653.3,0.2999]
[1757823390562,22.07498439,4653.4,4653.3,0.001]
[1757823390762,21.49977841,4653.4,4653.3,0.001]
[1757823390962,21.99667841,4653.4,4653.3,0.001]
[1757823393502,21.99679274,4653.4,4653.3,0.001]
[1757823394001,21.99672052,4653.4,4653.3,0.001]
[1757823394511,22.76366183,4653.4,4653.3,0.001]
[1757823394713,21.99672052,4653.4,4653.3,0.001]
[1757823395212,22.76302704,4653.4,4653.3,0.001]
[1757823395797,21.99672052,4653.4,4653.3,0.001]
[1757823396309,22.76283882,4653.4,4653.3,0.001]
[1757823396703,4.22919727,4652.9,4652.8,0.001]
[1757823396900,14.3515537,4652.9,4652.8,0.001]
[1757823397115,16.83851057,4652.9,4652.8,0.001]
[1757823397508,16.71772668,4652.9,4652.8,0.001]
[1757823399420,17.29187586,4652.9,4652.8,0.001]
[1757823401922,16.84877586,4652.9,4652.8,0.001]
[1757823402123,17.48383854,4652.9,4652.8,0.001]
[1757823402424,17.48383854,4652.9,4650.3,0.4538]
[1757823402425,2.258,4651.4,4650.3,0.4538]
[1757823402623,2.258,4651.4,4651.3,0.2989]
[1757823402624,2.94189035,4651.4,4651.3,0.2989]
[1757823402823,11.35935839,4651.4,4651.3,0.7527]
[1757823403013,0.792,4651.2,4650.3,0.4746]
[1757823403217,5.94216771,4650.8,4650.7,0.4746]
[1757823403415,10.10938404,4650.8,4650.7,0.4746]
[1757823403807,0.792,4649.5,4648.7,1.65]
[1757823404131,3.0,4650.4,4647.3,2.15175322]
[1757823404132,0.792,4649.3,4647.9,1.65]
[1757823404334,0.792,4649.3,4647.5,2.151675]
[1757823404335,0.792,4649.1,4648.0,2.62604648]
[1757823404507,3.653,4649.0,4647.6,2.15164816]
[1757823404825,0.792,4648.8,4648.6,2.15115598]
[1757823405030,0.792,4648.8,4648.7,2.86236601]
[1757823405325,0.792,4648.8,4648.7,0.6897156]
[1757823405524,4.447,4648.8,4648.7,0.4746]
[1757823406299,4.447,4648.8,4647.1,2.42930192]
[1757823406300,0.792,4648.7,4646.7,1.65]
[1757823406509,0.792,4648.5,4646.9,30.02151972]
[1757823406712,3.792,4648.3,4646.7,1.65]
[1757823406896,3.792,4648.1,4646.9,0.49731972]
[1757823407096,0.792,4647.9,4646.9,2.64924784]
[1757823407297,0.792,4647.5,4647.0,0.74872478]
[1757823407518,1.65,4648.1,4647.1,0.4758]
[1757823407519,3.662,4648.0,4647.1,0.4758]
[1757823407719,0.792,4647.9,4647.1,0.4758]
[1757823408423,0.792,4647.9,4645.0,0.64567575]
[1757823408424,0.792,4646.9,4645.0,0.64567575]
[1757823408598,3.792,4646.2,4645.4,0.4758]
[1757823408928,0.792,4645.4,4644.8,0.08]
[1757823409130,0.792,4645.1,4644.8,0.08]
[1757823409345,0.792,4644.9,4644.8,0.08]
[1757823409555,4.474,4644.9,4644.8,0.08]
[1757823409764,7.474,4644.9,4644.8,0.08]
[1757823409968,3.792,4644.9,4644.8,0.5558]
[1757823410256,5.4213,4644.9,4643.0,0.4758]
[1757823410560,6.9015938,4644.8,4643.1,0.4758]
[1757823410865,0.792,4643.6,4642.6,0.11438542]
[1757823411172,6.25372627,4642.9,4642.6,0.11438542]
[1757823411317,7.5,4642.9,4642.6,0.11438542]
[1757823411666,3.792,4642.9,4642.6,0.11438542]
[1757823411835,7.501,4642.9,4642.8,0.5558]
[1757823412315,7.501,4642.9,4639.0,0.4971]
[1757823412316,1.0,4642.0,4639.0,0.4971]
[1757823412515,0.5558,4642.7,4639.0,0.4971]
[1757823412516,3.03504306,4641.9,4639.1,30.3055]
[1757823412837,3.03504306,4641.9,4641.8,0.314]
[1757823412838,0.02154306,4641.9,4641.8,0.314]
[1757823413035,0.02154306,4641.9,4641.8,1.1166]
[1757823413277,0.02154306,4642.7,4641.8,1.89750293]
[1757823413464,0.1123,4642.8,4641.9,2.10654748]
[1757823413465,0.09309888,4642.8,4641.9,2.10654748]
[1757823413613,2.15275371,4645.3,4642.1,3.0]
[1757823413614,2.15304839,4644.6,4642.1,3.0]
[1757823413812,0.4755,4645.4,4643.4,0.314]
[1757823414066,2.02,4644.7,4643.4,0.314]
[1757823414220,2.02,4644.7,4644.3,0.001]
[1757823414221,0.64624322,4644.5,4644.3,0.001]
[1757823414569,4.516,4645.0,4644.6,0.314]
[1757823414715,0.64613744,4644.9,4644.6,0.314]
[1757823414921,0.64613744,4644.9,4644.3,0.8036]
[1757823414922,3.2956,4644.7,4644.3,0.001]
[1757823415153,6.164,4644.8,4644.3,0.001]
[1757823415353,3.0,4644.7,4644.3,0.001]
[1757823415526,3.9489,4644.7,4644.3,0.001]
[1757823415725,0.4734,4644.6,4644.3,0.001]
[1757823416220,5.15301982,4644.7,4644.3,0.001]
[1757823416417,1.651,4644.8,4644.3,0.001]
[1757823416656,1.651,4644.8,4644.6,0.314]
[1757823416657,7.506,4644.7,4644.6,0.314]
[1757823416854,7.505,4644.7,4644.6,0.314]
[1757823417030,6.235,4644.8,4644.6,0.314]
[1757823417230,6.235,4644.8,4644.6,1.1166]
[1757823417458,3.4971,4644.7,4644.3,0.001]
[1757823417663,0.2956,4644.4,4644.3,0.001]
[1757823418022,1.2445,4644.4,4644.3,0.001]
[1757823418563,0.769,4644.4,4644.3,0.001]
[1757823418866,2.15310968,4644.5,4644.3,0.001]
[1757823419226,7.492,4644.4,4644.3,0.001]
[1757823419627,3.0,4644.4,4644.3,0.001]
[1757823419882,7.492,4644.4,4644.3,0.001]
[1757823420379,7.492,4644.4,4644.3,0.315]
[1757823420380,7.488,4644.4,4644.3,0.315]
[1757823420540,7.484,4644.4,4644.3,0.315]
[1757823421162,4.481,4644.4,4644.3,0.315]
[1757823421467,4.481,4644.4,4644.3,0.8121]
[1757823421664,4.481,4644.4,4644.3,0.315]
[1757823421838,0.4971,4644.7,4644.3,0.315]
[1757823422032,4.479,4644.4,4644.3,0.001]
[1757823422531,4.479,4644.4,4644.3,0.315]
[1757823422742,0.4971,4644.7,4644.3,0.8121]
[1757823422941,0.1072,4644.4,4644.3,0.315]
[1757823423646,0.1072,4644.4,4644.3,1.1176]
[1757823423980,0.1072,4644.4,4644.3,0.315]
[1757823424560,0.08,4644.8,4644.3,0.315]
[1757823424561,0.08,4644.8,4644.6,2.15303793]
[1757823424904,0.08,4644.8,4644.7,1.51381646]
[1757823425195,0.08,4644.8,4644.7,1.2238]
[1757823425366,0.08,4644.8,4644.7,1.24532991]
[1757823425566,0.08,4644.8,4644.7,1.2238]
[1757823426171,0.08,4644.8,4644.7,0.8111]
[1757823426389,0.1872,4644.8,4644.7,0.314]
[1757823426759,0.1872,4644.8,4644.4,1.652]
[1757823427614,0.1872,4644.8,4644.3,0.001]
[1757823427615,0.1072,4644.4,4644.3,0.001]
[1757823428060,4.5492,4644.4,4644.3,0.001]
[1757823428482,4.5452,4644.4,4644.3,0.315]
[1757823429166,6.39763065,4644.4,4644.3,0.001]
[1757823429470,11.03129881,4644.4,4644.3,0.001]
[1757823429697,6.59329881,4644.4,4644.3,0.001]
[1757823429877,11.03429881,4644.4,4644.3,0.001]
[1757823430696,2.1539211,4642.7,4641.8,1.652]
[1757823430862,6.5889315,4642.7,4641.4,0.4971]
[1757823431286,2.1540135,4642.5,4641.4,0.4971]
[1757823431464,0.19627756,4642.4,4641.5,2.15447076]
[1757823431663,4.435,4642.7,4641.4,0.4971]
[1757823431891,0.19627712,4642.6,4641.8,2.15432183]
[1757823432198,0.19627712,4642.5,4641.4,0.4971]
[1757823432398,0.19627712,4642.4,4641.5,2.15447592]
[1757823432694,0.19627712,4642.3,4641.4,0.4971]
[1757823432866,0.64640614,4642.9,4641.5,0.3065]
[1757823432867,0.19627712,4642.2,4641.5,0.3065]
[1757823433058,4.422,4642.5,4641.9,2.15428587]
[1757823433259,0.19652846,4642.4,4642.3,2.15410464]
[1757823433480,0.19652846,4642.4,4642.3,3.27270464]
[1757823433897,0.19652846,4642.4,4642.3,0.001]
[1757823434262,0.96552846,4642.4,4642.3,0.001]
[1757823434463,0.19652846,4642.4,4642.3,0.315]
[1757823435570,0.19652846,4642.4,4642.3,0.001]
[1757823436270,0.19652846,4642.4,4642.3,0.2941]
[1757823436474,0.19652846,4642.4,4642.3,0.001]
[1757823436786,0.19652846,4642.4,4642.3,0.2941]
[1757823436971,0.19652846,4642.4,4642.3,0.001]
[1757823437171,0.65029776,4642.4,4642.3,0.001]
[1757823437395,0.19652846,4642.4,4642.3,0.001]
[1757823437879,0.19652846,4642.4,4642.3,0.2941]
[1757823440168,0.19652846,4642.4,4642.3,0.7749]
[1757823440803,0.2672,4642.8,4642.3,0.7749]
[1757823441007,0.1980866,4642.7,4642.3,0.7749]
[1757823441204,0.1980866,4642.6,4642.3,0.7749]
[1757823441502,0.1980866,4642.5,4642.3,0.7749]
[1757823441706,0.1980866,4642.4,4642.3,0.2941]
[1757823442372,0.1980866,4642.4,4642.3,2.44820464]
[1757823442578,0.1980866,4642.4,4642.3,0.2941]
[1757823442984,0.1980866,4642.4,4642.3,2.44820464]
[1757823443286,0.1980866,4642.4,4642.3,2.92900464]
[1757823443483,0.1980866,4642.4,4642.3,0.79644104]
[1757823443800,0.1980866,4642.4,4642.3,0.001]
[1757823444773,0.19817109,4642.4,4642.3,0.001]
[1757823445108,0.49087109,4642.4,4642.3,0.001]
[1757823445281,0.49086399,4642.4,4642.3,0.001]
[1757823445481,0.19816399,4642.4,4642.3,0.001]
[1757823445697,0.49086399,4642.4,4642.3,0.001]
[1757823445893,0.93566399,4642.4,4642.3,0.001]
[1757823446301,0.49086399,4642.4,4642.3,0.001]
[1757823446685,6.55692223,4642.4,4642.3,0.001]
[1757823446909,7.13234482,4642.4,4642.3,0.001]
[1757823447110,7.90406654,4642.4,4642.3,0.001]
[1757823447309,7.90406654,4642.4,4640.5,0.1072]
[1757823447310,2.1544941,4641.5,4640.5,0.1072]
[1757823447615,0.1072,4641.0,4640.5,0.1072]
[1757823447906,0.19816399,4640.9,4640.5,0.1072]
[1757823448106,0.19816399,4640.9,4640.1,1.653]
[1757823448107,0.19816399,4640.8,4640.7,2.15484732]
[1757823448307,0.19816399,4640.8,4640.7,3.23624732]
[1757823448508,0.19816399,4640.8,4640.7,3.34344732]
[1757823448711,0.19816399,4640.8,4640.7,3.25779579]
[1757823448902,0.19816399,4640.8,4640.7,3.34344732]
[1757823449413,0.57538315,4642.3,4640.8,30.0]
[1757823449614,1.7602,4642.4,4640.8,30.0]
[1757823449615,0.1072,4642.4,4642.3,2.15410464]
[1757823449813,0.1072,4642.4,4642.3,0.2931]
[1757823450014,0.2672,4642.8,4642.3,0.2931]
[1757823450423,0.4448,4642.7,4641.8,0.1072]
[1757823450590,0.4448,4642.7,4642.1,2.15416713]
[1757823450917,0.2672,4642.8,4642.2,2.15413866]
[1757823451130,0.2672,4642.8,4642.0,2.15420554]
[1757823451290,0.2672,4642.8,4642.1,2.15418451]
[1757823451489,0.2672,4642.8,4642.0,2.15424229]
[1757823451686,0.4672,4642.7,4641.8,0.1072]
[1757823451922,0.1072,4642.3,4642.1,0.001]
[1757823452227,0.2927,4642.2,4642.1,0.001]
[1757823452705,1.2047,4642.2,4642.1,0.001]
[1757823453928,0.7375,4642.2,4642.1,0.001]
[1757823454284,0.2927,4642.2,4642.1,0.001]
[1757823454900,4.315,4642.4,4642.1,0.001]
[1757823455098,0.1072,4642.2,4642.1,0.2941]
[1757823455320,4.46,4642.8,4642.1,0.2941]
[1757823455505,0.1072,4642.4,4642.2,2.15415104]
[1757823455717,0.1072,4642.4,4642.3,2.17564568]
[1757823455918,0.1072,4642.4,4642.3,0.2931]
[1757823456119,0.1072,4642.7,4642.3,2.44720464]
[1757823456324,0.1072,4642.7,4642.4,2.15405681]
[1757823456932,0.1072,4642.7,4642.1,0.001]
[1757823456933,0.1072,4642.7,4642.6,0.2931]
[1757823457124,0.16,4642.8,4642.6,0.2931]
[1757823457319,0.16,4642.8,4642.7,2.17545824]
[1757823457498,0.16,4642.8,4642.7,2.44701905]
[1757823458630,0.16,4642.8,4642.7,3.23531905]
[1757823460131,0.002,4644.4,4642.7,4.0814]
[1757823460304,0.002,4644.4,4642.9,3.0]
[1757823460634,0.002,4644.4,4643.3,2.15364072]
[1757823460934,0.002,4644.4,4644.2,2.44632337]
[1757823461236,0.002,4644.4,4644.2,0.31463223]
[1757823461436,0.20077184,4644.3,4644.2,2.4678556]
[1757823461734,0.002,4644.3,4644.2,2.4678556]
[1757823462269,0.002,4644.3,4644.2,2.44632337]
[1757823462749,0.002,4644.3,4644.2,2.15322337]
[1757823463120,0.002,4644.3,4644.2,2.44632337]
[1757823463624,0.002,4644.3,4644.0,6.42330286]
[1757823463625,0.002,4644.3,4644.1,2.15326241]
[1757823463926,0.002,4644.3,4644.1,2.15326974]
[1757823464325,0.002,4644.3,4644.2,2.15322337]
[1757823466133,0.002,4644.3,4644.0,2.15327129]
[1757823466334,0.002,4644.3,4644.1,2.15325077]
[1757823466641,0.002,4644.3,4643.6,3.0]
[1757823466642,0.3071,4644.0,4643.4,2.15355012]
[1757823467047,0.7454,4644.0,4643.5,2.15354267]
[1757823467245,0.4383,4643.9,4643.5,2.15354267]
[1757823467460,0.9027,4643.9,4643.6,0.1072]
[1757823467763,0.3071,4643.7,4643.6,0.1072]
[1757823467950,0.7454,4643.7,4643.6,0.1072]
[1757823468155,1.2098,4643.7,4643.6,0.1072]
[1757823468349,1.2098,4643.7,4642.9,2.1538086]
[1757823468555,1.2098,4643.7,4643.0,2.15377028]
[1757823468962,0.3071,4643.7,4642.7,5.89]
[1757823469267,0.9027,4643.6,4642.1,0.001]
[1757823469468,3.9027,4643.6,4642.1,2.15519597]
[1757823469687,3.05626494,4643.5,4642.1,2.15519597]
[1757823469980,0.9027,4643.4,4642.2,2.15412889]
[1757823470179,2.59194072,4643.3,4642.2,2.15412889]
[1757823470390,2.59201095,4643.2,4642.2,2.15412889]
[1757823470686,0.4383,4643.2,4642.8,0.001]
[1757823470867,4.232,4643.6,4642.8,0.001]
[1757823471175,0.9027,4643.1,4642.8,0.001]
[1757823471876,0.431,4643.0,4642.8,0.001]
[1757823472484,0.8915,4643.5,4642.8,0.001]
[1757823472859,7.225,4643.7,4642.8,0.001]
[1757823472860,1.652,4643.8,4643.1,2.15370034]
[1757823473399,1.652,4643.8,4643.3,2.15363375]
[1757823473946,2.083,4643.8,4643.3,2.15363375]
[1757823474449,0.4605,4644.1,4643.1,2.15369401]
[1757823474654,0.4605,4644.1,4643.5,2.15354416]
[1757823474859,0.4605,4644.1,4643.5,2.1535451]
[1757823475061,0.433,4644.3,4642.8,0.001]
[1757823475403,0.433,4644.3,4643.4,2.15358249]
[1757823475596,0.433,4644.3,4643.6,2.15349987]
[1757823475957,0.433,4644.3,4643.7,2.17496476]
[1757823475958,0.002,4644.3,4643.7,2.17496476]
[1757823476291,0.002,4644.3,4643.7,2.15345479]
[1757823476860,0.002,4644.3,4643.8,0.02153408]
[1757823477074,0.002,4644.3,4643.9,2.15335644]
[1757823477277,0.002,4644.3,4644.0,0.02153316]
[1757823477673,0.3095,4644.1,4642.8,1.653]
[1757823477873,0.3095,4644.1,4643.6,2.15349137]
[1757823478074,0.002,4644.3,4644.0,0.303]
[1757823478272,0.002,4644.3,4644.2,2.15322337]
[1757823478504,0.002,4644.3,4644.2,2.2819556]
[1757823478702,0.002,4644.3,4644.2,3.0746556]
[1757823478908,0.002,4644.3,4644.2,3.3821556]
[1757823479193,0.002,4644.3,4644.2,3.05312337]
[1757823479616,0.002,4644.3,4644.2,2.56342337]
[1757823480383,0.002,4644.3,4644.2,2.26042337]
[1757823481507,0.002,4644.3,4644.2,2.56342337]
[1757823482592,0.002,4644.3,4644.2,2.26042337]
[1757823482974,0.002,4644.3,4644.2,2.56342337]
[1757823483370,0.002,4644.3,4644.2,3.05312337]
[1757823483678,0.002,4644.3,4644.2,2.56342337]
[1757823485733,1.203,4644.3,4643.7,1.652]
[1757823485884,1.203,4644.3,4643.8,2.15339971]
[1757823486081,0.8915,4644.2,4643.7,0.1072]
[1757823486580,0.3095,4643.8,4643.7,0.1072]
[1757823486802,0.7405,4643.8,4643.7,0.1072]
[1757823487211,1.201,4643.8,4643.7,0.1072]
[1757823487382,1.201,4643.8,4643.0,2.15377631]
[1757823487698,1.201,4643.8,4642.9,1.652]
[1757823487699,0.431,4643.7,4643.2,0.1072]
[1757823487901,0.3095,4643.3,4643.2,0.1072]
[1757823488222,0.3095,4643.3,4642.8,0.001]
[1757823488421,0.8915,4643.2,4642.8,0.001]
[1757823488593,0.1072,4643.1,4642.8,0.001]
[1757823488934,0.3095,4642.9,4642.8,0.001]
[1757823489283,1.201,4642.9,4642.8,0.001]
[1757823491514,3.35482627,4642.9,4642.8,0.001]
[1757823491917,5.00682627,4642.9,4642.8,0.001]
[1757823493106,2.853,4642.9,4642.8,0.001]
[1757823493304,6.99,4642.9,4642.8,0.001]
[1757823493596,2.853,4642.9,4642.8,0.001]
[1757823493909,2.3925,4642.9,4642.8,0.001]
[1757823495090,6.5215,4642.9,4642.8,0.001]
[1757823495286,6.5175,4642.9,4642.8,0.001]
[1757823495798,6.9939,4642.9,4642.8,0.001]
[1757823495992,5.776,4642.9,4642.8,0.001]
[1757823496420,0.1072,4643.0,4642.8,0.3034]
[1757823496718,0.002,4644.3,4642.8,0.3034]
[1757823496719,0.585,4643.4,4642.8,0.3034]
[1757823496896,4.119,4643.5,4642.9,0.02153826]
[1757823497096,1.652,4643.6,4643.3,2.15362752]
[1757823497286,0.4764,4644.0,4643.2,2.15364683]
[1757823497287,0.934,4644.0,4643.2,2.15364683]
[1757823497491,4.116,4643.9,4643.2,2.15364683]
[1757823497820,4.116,4643.9,4642.8,2.15485764]
[1757823497821,0.3075,4643.3,4643.1,2.15373183]
[1757823497986,4.114,4643.7,4643.1,2.15372593]
[1757823498191,0.3075,4643.2,4642.8,0.001]
[1757823498720,0.934,4643.1,4642.8,0.001]
[1757823498893,0.3075,4642.9,4642.8,0.001]
[1757823499287,0.7651,4642.9,4642.8,0.001]
[1757823500259,1.2415,4642.9,4642.8,0.001]
[1757823501827,3.39532627,4642.9,4642.8,0.001]
[1757823502929,7.68332627,4642.9,4642.8,0.001]
[1757823503136,7.88171404,4642.9,4642.8,0.001]
[1757823503325,8.19894662,4642.9,4642.8,0.001]
[1757823503726,8.0799844,4642.9,4642.8,0.001]
[1757823503927,8.19893648,4642.9,4642.8,0.001]
[1757823504241,8.00066612,4642.9,4642.8,0.001]
[1757823504420,8.19880115,4642.9,4642.8,0.001]
[1757823505253,8.00066612,4642.9,4642.8,0.001]
[1757823505440,8.19869703,4642.9,4642.8,0.001]
[1757823506357,8.00066612,4642.9,4642.8,0.001]
[1757823506527,8.19860954,4642.9,4642.8,0.001]
[1757823507218,8.00066612,4642.9,4642.8,0.001]
[1757823507662,12.08666612,4642.9,4642.8,0.001]
[1757823508936,12.28448394,4642.9,4642.8,0.001]
[1757823509564,12.08666612,4642.9,4642.8,0.001]
[1757823511947,8.00266612,4642.9,4642.8,0.001]
[1757823512165,12.06866612,4642.9,4642.8,0.001]
[1757823512327,12.26648543,4642.9,4642.8,0.001]
[1757823514432,12.25748543,4642.9,4642.8,0.001]
[1757823514636,6.91248543,4642.9,4642.8,0.001]
[1757823514843,10.96948543,4642.9,4642.8,0.001]
[1757823515462,10.9652493,4642.9,4642.8,0.001]
[1757823516553,12.2532493,4642.9,4642.8,0.001]
[1757823518064,14.97581129,4642.9,4642.8,0.001]
[1757823518367,15.43361129,4642.9,4642.8,0.001]
[1757823518741,9.11461129,4642.9,4642.8,0.001]
[1757823518948,12.2422493,4642.9,4642.8,0.001]
[1757823519271,12.69881129,4642.9,4642.8,0.001]
[1757823521950,14.96481129,4642.9,4642.8,0.001]
[1757823522260,14.96481129,4642.9,4638.4,5.166]
[1757823522261,2.15526531,4639.8,4639.7,0.4578]
[1757823522465,7.83926531,4639.8,4639.7,1.0677]
[1757823523176,5.684,4639.8,4639.7,1.0677]
[1757823523378,7.83926531,4639.8,4639.7,1.0677]
[1757823523877,5.684,4639.8,4639.7,1.0677]
[1757823524193,3.80826531,4639.8,4639.7,0.3024]
[1757823524346,1.653,4639.8,4639.2,0.3075]
[1757823524541,0.1977753,4639.7,4639.1,0.3075]
[1757823524751,3.8082771,4639.8,4639.6,0.3024]
[1757823524752,1.653,4639.8,4639.6,0.3024]
[1757823524952,4.067,4639.7,4638.8,0.08]
[1757823525153,4.067,4639.6,4638.9,0.4578]
[1757823525353,2.1555941,4639.1,4638.9,0.4578]
[1757823525593,4.067,4639.0,4638.9,0.4578]
[1757823525762,4.067,4639.0,4638.9,0.7653]
[1757823526084,4.067,4639.0,4638.8,0.08]
[1757823526085,3.0,4638.9,4638.8,0.08]
[1757823526285,5.941,4638.9,4638.8,0.08]
[1757823526587,5.941,4638.9,4638.8,1e-08]
[1757823526588,10.15703391,4638.9,4638.8,1e-08]
[1757823526786,9.66753391,4638.9,4638.8,1e-08]
[1757823526990,10.15703391,4638.9,4638.8,1e-08]
[1757823527283,10.15703391,4638.9,4635.6,0.3075]
[1757823527284,2.15661325,4636.9,4635.6,0.3075]
[1757823527487,10.89561325,4636.9,4636.8,1e-08]
[1757823527686,12.78196926,4636.9,4636.8,1e-08]
[1757823527856,2.15733243,4635.4,4634.8,0.06560001]
[1757823528055,2.15751459,4635.0,4634.8,0.06560001]
[1757823528254,2.15751459,4635.0,4633.3,0.30830193]
[1757823528255,1.288,4634.5,4633.3,0.00080193]
[1757823528581,3.0,4634.8,4633.3,0.00080193]
[1757823528582,0.19753391,4634.8,4633.3,0.00080193]
[1757823528786,3.0,4634.6,4633.3,0.30830193]
[1757823528958,3.0,4634.6,4634.5,0.2939]
[1757823528959,0.19656905,4634.6,4634.5,0.2939]
[1757823529151,0.2905,4634.6,4633.3,0.00080193]
[1757823529349,2.15651211,4637.2,4633.3,0.00080193]
[1757823529350,0.19655743,4635.9,4633.4,0.3075]
[1757823529555,0.702,4636.8,4635.8,0.2939]
[1757823529793,5.745,4636.7,4635.8,0.2939]
[1757823529974,1.654,4637.5,4635.9,0.3279]
[1757823530170,4.121,4637.4,4635.9,0.3279]
[1757823530371,0.4615,4637.3,4635.4,0.0204]
[1757823530571,4.31725622,4637.4,4635.5,0.3075]
[1757823530776,3.0,4637.3,4635.8,2.15710706]
[1757823531014,3.19625622,4637.3,4635.9,0.3075]
[1757823531173,5.35269389,4637.3,4635.9,0.3075]
[1757823531382,3.19625622,4637.3,4635.9,0.3075]
[1757823531587,2.15648148,4637.2,4635.9,0.3075]
[1757823531960,0.08,4636.8,4636.2,2.15693698]
[1757823532292,0.1072,4636.6,4636.3,0.3279]
[1757823532495,4.198,4636.8,4636.5,0.2918]
[1757823532813,0.08,4636.8,4636.6,2.48463655]
[1757823532986,0.08,4636.8,4636.7,0.6197]
[1757823533298,0.08,4636.8,4636.7,0.2918]
[1757823534193,0.08,4636.8,4636.7,0.5993]
[1757823535069,0.08,4636.8,4636.7,0.6197]
[1757823536789,0.08,4636.8,4636.7,0.64126706]
[1757823537107,0.08,4636.8,4636.7,0.7269]
[1757823537532,0.08,4636.8,4636.7,0.74846706]
[1757823537736,0.08,4636.8,4636.7,0.7269]
[1757823538689,0.08,4636.8,4636.7,0.399]
[1757823538890,0.08,4636.8,4636.7,0.5993]
[1757823539129,0.08,4636.8,4636.7,0.6197]
[1757823539835,0.08,4636.8,4636.7,0.5993]
[1757823540036,0.08,4636.8,4636.7,2.44850627]
[1757823540651,0.08,4636.8,4636.7,0.2918]
[1757823541056,0.08,4636.8,4636.3,2.15688942]
[1757823541332,0.08,4636.8,4636.5,2.15679864]
[1757823541622,0.08,4636.8,4636.7,0.2918]
[1757823541811,0.08,4636.8,4636.7,2.44850627]
[1757823542524,0.08,4636.8,4636.7,2.75600627]
[1757823542888,0.08,4636.8,4636.7,2.77640627]
[1757823543095,0.08,4636.8,4636.7,2.75600627]
[1757823544224,0.08,4636.8,4636.7,2.77640627]
[1757823544523,0.08,4636.8,4636.7,2.75600627]
[1757823545123,0.08,4636.8,4636.7,2.79797333]
[1757823545304,7.02,4638.6,4637.9,2.15610846]
[1757823545504,0.08,4638.8,4637.7,0.3075]
[1757823545704,0.08,4638.8,4638.2,2.15600278]
[1757823545998,0.08,4638.8,4638.3,0.02155962]
[1757823546332,0.08,4638.8,4638.7,0.2918]
[1757823546533,0.08,4638.8,4638.7,2.4475764]
[1757823546836,0.08,4638.8,4638.7,0.2918]
[1757823547230,0.08,4638.8,4638.7,2.4475764]
[1757823548039,0.08,4638.8,4638.7,0.2918]
[1757823549103,0.08,4638.8,4638.7,2.4475764]
[1757823549501,0.08,4638.8,4638.7,0.2918]
[1757823549725,0.08,4638.8,4638.4,4.1762]
[1757823549929,0.08,4638.8,4638.4,0.1072]
[1757823550130,0.08,4638.8,4638.7,0.2918]
[1757823551246,0.08,4638.8,4638.7,4.05]
[1757823551453,0.08,4638.8,4638.7,6.2057764]
[1757823551610,0.08,4638.8,4638.3,3.80994386]
[1757823551814,0.08,4638.8,4638.6,4.054]
[1757823552252,0.08,4638.8,4638.5,2.15586841]
[1757823552426,2.64637898,4638.7,4636.1,2.15698303]
[1757823552743,0.3089,4638.4,4636.8,0.0204]
[1757823552947,0.7374,4638.4,4637.6,2.15628117]
[1757823553246,0.7374,4638.4,4637.7,4.051]
[1757823553466,0.7374,4638.4,4637.7,6.20722451]
[1757823553758,0.08,4638.8,4637.7,6.20722141]
[1757823554118,0.08,4638.8,4638.0,2.15609162]
[1757823554560,0.08,4638.8,4637.7,6.20722141]
[1757823554561,0.08,4638.8,4638.4,2.15589621]
[1757823555117,0.08,4638.8,4638.7,0.2918]
[1757823555418,0.08,4638.8,4638.3,4.044]
[1757823555718,0.08,4638.8,4638.0,2.15609999]
[1757823555928,0.5096,4638.8,4638.1,4.045]
[1757823556123,0.5096,4638.8,4637.5,1.654]
[1757823556338,2.66533593,4638.8,4637.8,2.15618885]
[1757823556539,2.66533593,4638.8,4637.9,2.15613604]
[1757823556737,0.5096,4638.8,4637.5,3.81029493]
[1757823556945,2.1557764,4638.7,4637.7,2.15624047]
[1757823557148,2.1557764,4638.7,4637.5,1.654]
[1757823557149,0.9046,4638.6,4637.8,4.039]
[1757823557334,0.9046,4638.5,4637.9,4.038]
[1757823557864,0.9046,4638.5,4637.8,4.038]
[1757823558047,2.15596617,4638.3,4637.9,4.038]
[1757823558350,0.08,4638.8,4637.5,1.654]
[1757823558351,0.311,4638.0,4637.8,4.035]
[1757823558654,0.311,4638.0,4637.1,1.654]
[1757823558655,0.9046,4637.9,4637.1,1.654]
[1757823558954,0.9046,4637.9,4637.2,4.032]
[1757823559259,0.9046,4637.9,4637.1,1.654]
[1757823559417,3.0607635,4637.9,4636.9,1.654]
[1757823559616,3.0607635,4637.9,4637.0,4.03]
[1757823560353,0.311,4637.1,4636.7,4.029]
[1757823560532,1.2156,4637.1,4636.7,4.029]
[1757823560729,0.786,4637.1,4636.7,4.029]
[1757823561055,0.1072,4637.2,4636.7,4.029]
[1757823561656,0.1072,4637.2,4636.5,0.1072]
[1757823561949,2.73868749,4637.2,4636.5,0.1072]
[1757823562450,2.15657749,4637.0,4636.5,0.1072]
[1757823562653,0.4296,4637.1,4635.2,0.3075]
[1757823562654,0.311,4636.6,4635.6,2.15718507]
[1757823562952,0.311,4636.6,4635.2,0.3075]
[1757823562953,0.9046,4636.5,4636.0,0.1072]
[1757823563155,0.1072,4636.7,4636.0,0.1072]